Cogmind - Beta 9.2 @@@ ROGUE MODE // 2019.12.05 @ 17:57:27 Player: Enzo Result: Destroyed by G-47 Trooper with Particle Gun Performance ------------- Evolutions (0) 0 Regions Visited (1) 200 Robots Destroyed (10) 50 Value Destroyed (175) 175 Prototype IDs (0) 0 Alien Tech Used (0) 0 Bonus (0) 0 TOTAL SCORE: 425 Bonus ------- None Cogmind --------- Core Integrity 0/250 Matter 290/300 Energy 100/100 System Corruption 2% Temperature Cool (9) Movement Rolling (80) Location -10/Materials Parts ------- > --- POWER (1) -------- (None) > --- PROPULSION (2) --- Wheel > --- UTILITY (2) ------ (None) > --- WEAPON (2) ------- Assault Rifle > --- INVENTORY (4) ---- Structural Scanner Sensor Array Hacking Suite Grenade Launcher Peak State ------------ > --- POWER ------------ Ion Engine > --- PROPULSION ------- Hover Unit Hover Unit > --- UTILITY ---------- Medium Storage Unit Improved Terrain Scanner > --- WEAPON ----------- EM Pulse Gun EM Pulse Gun > --- INVENTORY -------- Hover Unit Structural Scanner Sensor Array Signal Interpreter Terrain Scan Processor Hacking Suite Grenade Launcher [Rating: 9] Favorites ----------- Power Ion Engine Engine Ion Engine Power Core Light Nuclear Core Propulsion Wheel Wheel Wheel Hover Unit Hover Unit Utility Improved Terrain Scanner Device Improved Terrain Scanner Storage Small Storage Unit Weapon EM Pulse Gun Energy Gun EM Pulse Gun Ballistic Gun Assault Rifle Special Weapon Welding Torch Build | -11 -10 ------- Run | Scr Mat Slots Evolved . | . . Power . | . . Propulsion . | . . Utility . | . . Weapon . | . . Parts Attached 18 | 9 9 Power 3 | 2 1 Engine 2 | 2 . Core 1 | . 1 Reactor . | . . Propulsion 7 | 3 4 Treads . | . . Leg . | . . Wheel 4 | 3 1 Hover 3 | . 3 Flight . | . . Utility 3 | 2 1 Device 1 | 1 . Storage 2 | 1 1 Processor . | . . Hackware . | . . Protection . | . . Artifact . | . . Weapon 5 | 2 3 Energy Gun 3 | 2 1 Energy Cannon . | . . Ballistic Gun 1 | . 1 Ballistic Cannon . | . . Launcher . | . . Special Weapon 1 | . 1 Impact Weapon . | . . Slashing Weapon . | . . Piercing Weapon . | . . Special Melee Weapon . | . . Unidentified Prototypes . | . . Parts Lost 10 | . 10 Power 2 | . 2 Propulsion 3 | . 3 Utility 1 | . 1 Weapon 4 | . 4 Highest Loss Streak 10 | . 10 Average Slot Usage (%) 77 | . 77 Engine 11 | . 11 Wheel 14 | . 14 Hover 6 | . 6 Device 12 | . 12 Storage 11 | . 11 Energy Gun 19 | . 19 Naked Turns . | . . Heaviest Build 18 | 14 18 Greatest Support 26 | 26 20 Greatest Overweight (x) 5 | 2 5 Average Overweight (x) . | . . Largest Inventory Capacity 8 | 6 8 Average Capacity 5 | 5 6 Most Carried 7 | 2 7 Average Carried 3 | . 4 Final Capacity 6 | 6 4 Final Carried 4 | 2 4 Class Distribution -------------------- 100% | Mutant Dominant Class ---------------- Mutant | -10/Materials Resources | -11 -10 ----------- Run | Scr Mat Matter Collected 336 | 290 46 Remotely . | . . Salvage Created 339 | 79 260 Parts 34 | 8 26 Haulers Intercepted 1 | . 1 Recyclers Shooed . | . . Parts Field Recycled . | . . Retrieved Matter . | . . Parts Self-Destructed . | . . Prevented . | . . Kills | -11 -10 ------- Run | Scr Mat Combat Hostiles Destroyed 2 | . 2 Melee 1 | . 1 Guns 1 | . 1 Classes Destroyed 7 | 2 5 Builder 1 | . 1 Tunneler 1 | 1 . Hauler 1 | . 1 Recycler 1 | 1 . Operator 1 | . 1 Watcher 3 | . 3 Grunt 2 | . 2 Best Kill Streak 2 | 2 2 Combat Bots Only 1 | . 1 Max Kills in Single Turn 1 | 1 1 Gunslinging . | . . Exploded . | . . Melee 1 | . 1 Uniques/NPCs Destroyed . | . . Combat | -11 -10 -------- Run | Scr Mat Damage Taken 712 | . 712 Core 260 | . 260 Absorbed by Shields . | . . Core Remaining (%) 100 | 100 . Volleys Fired 27 | 2 25 Largest 2 | 2 2 Hottest 80 | 80 80 Shots Fired 42 | 4 38 Gun 37 | 4 33 Cannon . | . . Launcher . | . . Special 5 | . 5 Kinetic . | . . Thermal 5 | . 5 Explosive . | . . Electromagnetic 37 | 4 33 Robot Hit Streak 10 | 2 10 Robot Miss Streak 3 | . 3 Penetration Max . | . . Secondary Targets . | . . Shots Hit Robots 29 | 2 27 Core Hits 21 | 2 19 Critical Hits . | . . Critical Kills . | . . Critical Parts Destroyed . | . . Melee Attacks . | . . Impact . | . . Slashing . | . . Piercing . | . . Sneak Attacks . | . . Combat Hostiles . | . . Follow-up Attacks . | . . Damage Inflicted 438 | 28 410 Guns 347 | 28 319 Cannons . | . . Explosions 41 | . 41 Melee . | . . Ramming 38 | . 38 Kinetic . | . . Thermal 53 | . 53 Explosive . | . . Electromagnetic 347 | 28 319 Impact . | . . Slashing . | . . Piercing . | . . Highest Corruption 2 | . 2 Average Corruption 2 | . 2 Corruption Purged . | . . Effects 1 | . 1 Message Errors 1 | . 1 Overload Shots . | . . Overflow Damage . | . . Projectiles . | . . Explosions . | . . Melee . | . . Knockbacks . | . . Impact . | . . Kinetic . | . . Secondary . | . . Self-Inflicted Damage 48 | . 48 Shots 1 | . 1 Rammed 18 | . 18 Targets Rammed 18 | . 18 Kicked . | . . Crushed . | . . Highest Temperature 182 | 18 182 Average Temperature 62 | 12 67 Received Heat Transfer 384 | . 384 Siege Activations . | . . Robots Corrupted . | . . Combat Hostiles . | . . Parts Fried . | . . Impact Corruptions . | . . Robots Melted . | . . Combat Hostiles . | . . Parts Melted 1 | . 1 Heat Transferred 175 | . 175 Parts Sabotaged . | . . Parts Stolen . | . . Parts Stripped . | . . Power Chain Reactions 1 | . 1 Missiles Intercepted . | . . Alert | -11 -10 ------- Run | Scr Mat Peak Influence 95 | 10 95 Average Influence 42 | 3 56 Maximum Alert Level . | . . Low Security (%) 100 | 100 100 Level 1 . | . . Level 2 . | . . Level 3 . | . . Level 4 . | . . Level 5 . | . . High Security . | . . Max Security . | . . Squads Dispatched . | . . Investigation . | . . Extermination . | . . Reinforcement . | . . Assault . | . . Garrison . | . . Intercept . | . . Construction Impeded . | . . Haulers Reinforced . | . . Stealth | -11 -10 --------- Run | Scr Mat Distress Signals 1 | . 1 Communications Jammed . | . . Distress Signals . | . . Times Spotted 10 | . 10 Peak Tracking Total 3 | . 3 Tactical Retreats 2 | . 2 Traps | -11 -10 ------- Run | Scr Mat Traps Triggered . | . . Indirectly . | . . Trap Hack Attempts . | . . Triggered . | . . Disarmed . | . . Reprogrammed . | . . Reused . | . . Traps Extracted . | . . Installed . | . . Triggered . | . . Machines | -11 -10 ---------- Run | Scr Mat Machines Disabled 1 | . 1 Max in Single Turn 1 | . 1 Machines Sabotaged . | . . Garrisons Compromised . | . . Overloaded Fab Kills . | . . Fab Network Shutdowns . | . . Hacking | -11 -10 --------- Run | Scr Mat Machines Accessed 2 | . 2 Terminals 2 | . 2 Fabricators . | . . Repair Stations . | . . Recycling Units . | . . Scanalyzers . | . . Garrison Access . | . . Total Hacks 7 | . 7 Successful 3 | . 3 Failed 4 | . 4 Catastrophic . | . . Database Lockouts . | . . Manual 5 | . 5 Terminals 7 | . 7 Fabricators . | . . Repair Stations . | . . Recycling Units . | . . Scanalyzers . | . . Garrison Access . | . . Terminal Hacks 2 | . 2 Robot Analysis 1 | . 1 Locate Traps 1 | . 1 Fabricator Hacks . | . . Repair Station Hacks . | . . Recycling Unit Hacks . | . . Scanalyzer . | . . Garrison Access Hacks . | . . Unauthorized Hacks 5 | . 5 Terminals 1 | . 1 Botnet 1 | . 1 Fabricators . | . . Repair Stations . | . . Recycling Units . | . . Scanalyzers . | . . Garrison Access . | . . Data Cores Recovered 1 | . 1 Used 1 | . 1 Hacking Detections 2 | . 2 Full Trace Events . | . . Feedback Events . | . . Feedback Blocked . | . . Robot Schematics Acquired . | . . Robots Built . | . . Matter . | . . Time . | . . Total Robot Build Rating . | . . Part Schematics Acquired . | . . Parts Built . | . . Matter . | . . Time . | . . Total Part Build Rating . | . . Parts Repaired . | . . Time . | . . Parts Recycled . | . . Recycled Matter . | . . Retrieved Matter . | . . Retrieved Components . | . . Parts Scanalyzed . | . . Part Schematics Acquired . | . . Parts Damaged . | . . Bothacking | -11 -10 ------------ Run | Scr Mat Used RIF Installer . | . . Robots Hacked . | . . Non-combat . | . . Combat . | . . Robot Hacks Applied . | . . Relay Couplers Released . | . . Robots Rewired . | . . Allies Hacked . | . . Hacks Repelled . | . . Allies | -11 -10 -------- Run | Scr Mat Total Allies . | . . Largest Group . | . . Highest-Rated Group . | . . Highest-Rated Ally . | . . Total Orders . | . . Ally Attacks . | . . Total Damage . | . . Kills . | . . Allies Corrupted . | . . Allies Melted . | . . Intel | -11 -10 ------- Run | Scr Mat Robot Analysis Total 1 | . 1 Derelict Logs Recovered . | . . Drone Launches . | . . Drone Recoveries . | . . Exploration | -11 -10 ------------- Run | Scr Mat Turns Passed 377 | 97 280 Spaces Moved 264 | 85 179 Core 32 | 28 4 Treads . | . . Legs . | . . Wheels 204 | 57 147 Hover 28 | . 28 Flight . | . . Fastest Speed 50 | 50 50 Average Speed 88 | 86 90 Slowest Speed 300 | 150 300 Overloaded Moves . | . . Propulsion Burnouts . | . . Robots Hopped . | . . Cave-ins Triggered . | . . Exploration Rate (%) 15 | 3 27 Regions Visited 1 Branch Regions . Pre-discovered Areas . | . . Known Exits Taken . | . . Unknown Exits Taken 1 | 1 . Scrap Searched . | . . Spaces Dug . | . . Terrain Destroyed 2 | . 2 Melee . | . . Projectile . | . . AOE 2 | . 2 Actions | -11 -10 --------- Run | Scr Mat Total 359 | 101 258 Wait 16 | 2 14 Move 263 | 84 179 Hop . | . . Pick Up 9 | 2 7 Fast Attach 16 | 9 7 Attach 1 | . 1 Detach . | . . Swap 1 | . 1 Drop 8 | 2 6 Fire 27 | 2 25 Melee . | . . Ram 18 | . 18 Kick . | . . Crush . | . . Escape Stasis . | . . Rewire . | . . Trap . | . . Miscellaneous . | . . Route ------- -11/Scrapyard -10/Materials History --------- Turn | Location | Event 7 | -11/Scrapyard | Discovered new exit (range 14) 98 | -11/Scrapyard | Entered Materials 327 | -10/Materials | Core integrity fell below 50% 351 | -10/Materials | Core integrity fell below 20% 358 | -10/Materials | Build established: Mutant 378 | -10/Materials | Destroyed by G-47 Trooper with Particle Gun Last Messages --------------- 00334_ U-05 Engineer lays Concrete. 00335_ Acquired Lgt. Nuclear Core. 00337_ Acquired Particle Gun. 00338_ Particle Gun destroyed. 00338_ Acquired 10 matter. 00340_ Acquired 15 matter. 00341_ Slammed into G-47 Trooper. 00342_ Destabilizing: System corrupted (+2). 00343_ 9DTPDOYT7 00343_ Slammed into G-47 Trooper. 00345_ K-01 Serf cleans the Matter Filter. 00346_ Slammed into G-47 Trooper. 00347_ Imp. Terrain Scanner destroyed. 00348_ Slammed into G-47 Trooper. 00349_ Lgt. Nuclear Core destroyed. 00349_ Slammed into G-47 Trooper. 00351_ K-01 Serf cleans the Matter Filter. 00351_ Slammed into G-47 Trooper. 00354_ K-01 Serf cleans the Matter Filter. 00373_ Acquired Assault Rifle. Map ----- +----------------------------------------------------+ | ?????????????????????????????????????????????????? | | ?????????????????????????????????????????????????? | | ?????????????????????????????????????????????????? | | ?????????????????????????????????????????????????? | | ?????????????????????????????????????? ??? ?? ??? | | ?????????????????????????????????????????????????? | | ??????????????????????????????????????????=??????? | | ?????????????????????????????????????????? ??? | | ??????????????????????????????? ? ?? ?? ? ???? | | ??????????????????? ????? ??????? ????? ? ? ??? | | ?????????????????????#???????????#??????? ????? | | ?????????????? ?????????????# ??????#???? ? ??? | | ???????????????????????????#? ?????????? ??????? | | ??????????????????? ????????? ?????/???? #?????#? | | ?????????????????????? ???????"?"??????? ???????? | | ????????????????#??????????????????#####+######??? | | ????????????????+ ?????"???????????#%= #???? | | ????????????????# ????????????????#%% ##??? | | ????????????????# k ?#?? ???????#??#% != #???? | | ???????????????## #?? ? ????#???#!!%% ##?#? | | ??????????###### ###+#############+########### | | ????????? !* %%%!%= ^ # | | ????????? u = %= %%%%%% # | | ????????? %%^ |"""""""% """"""" # | | ?????????????### ###g##!= %""""""!^""""""" # | | ??????????#????## ?#?# @#^ """""""!!""""""" # | | ??????????????????????#| # """""""%!""""""" # | | ??????????????????? #?# # """""%!!""""""" | | ??????????????????????#!% # % | | ????????????????#?????#%% # ! | | ????????????? ????????# ########+#########+## | | ?????????????????? ?#?# #??## # # | | ??????????????????????##+##???# # """ # | | ???????????????????????#??????# # """ # | | ??????????????????????????????# # """ # | | ????????????????????????????#?# # = # | | ???????????????????#??????????+ # % # | | ?????????????????????????????######### # | | ?????????????????????????????????????# "T" # | | ?????????????????????#???????????????# """ # | | ????????????????????????????????##???########## | | ????????????????????????????????????#?????????# | | ????????????????????????????????#??????##?????# | | ??????????????????????????????????????????????# | | ??????????????????????????????????????????????# | | ??????????????????????????????????????????????# | | ??????????????????????????????????????????????# | | ??????????????????????????????????????#???????# | | ??????????????????????????????????#???????????# | | ??????????????????????????????????????????????# | +----------------------------------------------------+ Best States ------------- Heat Dissipation 25 Energy Generation 14 Energy Capacity 250 Matter Stores 300 Matter Capacity 300 Sight Range 16 Terrain Scan Range 16 Terrain Scan Density 10 Evasion (%) 44 Item Schematics ----------------- None Robot Schematics ------------------ None Fabricated ------------ Nothing Alien Tech Used ----------------- None Achievements -------------- None Challenges ------------ None Game ------ Seed SurgeMakeshiftInterrupter Manual? 0 Play Time 00:05:17 Cumulative 15.5 hours Start 2019.12.05 @ 17:52:15 End 2019.12.05 @ 17:57:27 Sessions 1 Manual Loads 0 Difficulty Rogue Special Mode None Game No. 44 Rogue 44 Adventurer 0 Explorer 0 Win Type - Total 0 Types 0/0/0/0/0/0/0 Lore% 36 Gallery% 30 Achievement% 28 Wizard Run 0 Options --------- ASCII 0 Keyboard 0 Movement Numpad Keybinds 0 Fullscreen 2 Font 24/Smallcaps Map View 76x50 Tactical HUD 1 Map Filters NONE Filters NONE Steam 1 RUN: 755a8d56-c61f-435d-b213-e0ad3dfcf2fd